bitfinex/quotes_SOLUSD_20240626
["timestamp","ask_amount","ask_price","bid_price","bid_amount"]
[1719372454299,7.2094,138.71,138.65,25.2429]
[1719372456338,7.2098,138.7,138.65,25.2429]
[1719372456628,7.2107,138.69,138.62,18.0341]
[1719372456822,7.2107,138.69,138.63,7.2129]
[1719372458225,7.2107,138.69,138.64,7.2128]
[1719372458434,7.2099,138.7,138.64,7.2128]
[1719372460130,7.211,138.68,138.62,18.0341]
[1719372460340,7.211,138.68,138.62,25.2475]
[1719372460903,7.211,138.68,138.63,7.2133]
[1719372461404,7.2104,138.69,138.64,7.2127]
[1719372461620,7.2098,138.7,138.64,7.2127]
[1719372462309,7.2103,138.69,138.64,7.2127]
[1719372462510,7.2099,138.7,138.64,7.2127]
[1719372463308,7.2104,138.69,138.64,7.2127]
[1719372464104,7.2104,138.69,138.62,44.2941]
[1719372464105,7.2104,138.69,138.63,7.2133]
[1719372464410,18.1934,138.71,138.62,25.2479]
[1719372464631,7.211,138.68,138.62,25.2479]
[1719372465416,7.211,138.68,138.63,7.2133]
[1719372465617,7.2104,138.69,138.63,7.2133]
[1719372465816,24.0101872,138.73,138.63,36.0667]
[1719372466114,24.0101872,138.73,138.65,18.03]
[1719372466115,7.2098,138.7,138.65,18.03]
[1719372466316,7.2104,138.69,138.64,7.2129]
[1719372466514,2.2339872,138.72,138.62,18.0343]
[1719372466716,7.2098,138.7,138.62,18.0343]
[1719372467531,7.2098,138.7,138.61,26.26]
[1719372467732,7.2098,138.7,138.62,20.0]
[1719372468113,7.3793,138.71,138.65,7.2123]
[1719372468340,7.2093,138.71,138.66,7.2118]
[1719372468504,7.2093,138.71,138.65,7.2122]
[1719372468708,7.2104,138.69,138.64,25.2447]
[1719372468908,20.2565872,138.72,138.62,7.2138]
[1719372469109,28.13465644,138.71,138.62,7.2138]
[1719372469304,7.2108,138.68,138.62,7.2138]
[1719372470033,7.2104,138.69,138.63,7.2133]
[1719372470536,2.2339872,138.7,138.64,26.26]
[1719372470711,21.7762,138.73,138.68,7.2104]
[1719372470712,28.9844,138.73,138.68,7.2104]
[1719372471061,21.7762,138.73,138.68,7.2104]
[1719372472108,21.7762,138.73,138.66,26.26]
[1719372472302,2.2339872,138.72,138.66,26.26]
[1719372472733,2.2339872,138.72,138.66,44.2889]
[1719372473232,2.2339872,138.72,138.68,7.2106]
[1719372474210,21.7762,138.73,138.7,7.2093]
[1719372475029,15.4669,138.73,138.7,7.2093]
[1719372475732,15.4669,138.73,138.69,33.4701]
[1719372476041,15.4669,138.73,138.69,7.2101]
[1719372477927,22.6751,138.73,138.68,18.0265]
[1719372478136,22.6751,138.73,138.68,25.2372]
[1719372478511,17.7008872,138.73,138.66,7.2118]
[1719372478717,17.7008872,138.73,138.65,18.0305]
[1719372478718,2.2339872,138.73,138.69,25.2356]
[1719372480040,2.2339872,138.73,138.68,7.2106]
[1719372480419,2.2339872,138.73,138.66,18.0288]
[1719372480726,9.4422872,138.73,138.67,7.2113]
[1719372481126,6.2277,138.72,138.66,18.0288]
[1719372481346,7.2097,138.71,138.66,18.0288]
[1719372481639,2.2339872,138.73,138.72,7.2087]
[1719372482619,2.2339872,138.73,138.71,25.2316]
[1719372484217,2.2339872,138.73,138.7,7.2097]
[1719372484218,17.2473872,138.73,138.7,7.2097]
[1719372484820,2.2339872,138.73,138.71,20.0]
[1719372485831,2.2339872,138.73,138.72,7.2087]
[1719372489435,2.2339872,138.73,138.72,49.1588]
[1719372489643,258.1,138.81,138.78,7.2053]
[1719372489849,23.6554,138.84,138.78,7.2053]
[1719372490045,25.8893872,138.84,138.78,7.2053]
[1719372490622,25.8893872,138.84,138.81,7.2037]
[1719372490623,18.6867872,138.84,138.81,7.2037]
[1719372490945,18.6867872,138.84,138.79,18.0122]
[1719372491129,18.6867872,138.84,138.8,7.2044]
[1719372491729,18.6867872,138.84,138.79,25.2171]
[1719372491925,25.8893872,138.84,138.79,25.2171]
[1719372492140,25.8893872,138.84,138.79,18.0122]
[1719372492336,18.6867872,138.84,138.72,15.2979]
[1719372492541,7.2056,138.79,138.69,21.4427]
[1719372492761,7.2056,138.79,138.7,20.0]
[1719372492916,15.2386,138.79,138.7,20.0]
[1719372493118,7.2058,138.78,138.72,7.2086]
[1719372493323,7.2061,138.77,138.72,7.2086]
[1719372493558,7.2057,138.78,138.72,7.2086]
[1719372494237,7.2057,138.78,138.7,18.0237]
[1719372494238,15.2386,138.8,138.71,36.045]
[1719372494439,15.2386,138.8,138.75,7.207]
[1719372494653,15.2386,138.8,138.74,18.0181]
[1719372494834,2.56739967,138.79,138.69,15.3298]
[1719372495036,9.60259967,138.79,138.74,7.2073]
[1719372495224,2.39739967,138.79,138.72,7.2087]
[1719372495422,22.4527,138.75,138.7,25.2332]
[1719372496930,22.4527,138.75,138.65,15.8304]
[1719372497354,0.17,138.74,138.65,15.8304]
[1719372497545,2.22088085,138.73,138.69,7.2102]
[1719372497747,2.22088085,138.73,138.68,7.2106]
[1719372498165,2.22088085,138.73,138.68,7.2107]
[1719372498341,9.42918085,138.73,138.67,7.2112]
[1719372498947,9.42918085,138.73,138.68,7.2108]
[1719372499159,9.42918085,138.73,138.66,18.0293]
[1719372499160,2.22088085,138.73,138.66,18.0293]
[1719372499347,9.42918085,138.73,138.68,7.2107]
[1719372499545,2.22088085,138.73,138.68,7.2107]
[1719372501096,2.22088085,138.73,138.71,25.2313]
[1719372501760,2.22088085,138.73,138.72,7.2087]
[1719372501969,22.406,138.77,138.72,7.2087]
[1719372502151,24.62751,138.77,138.72,7.2087]
[1719372502346,24.62751,138.77,138.63,7.213]
[1719372502347,23.1091,138.73,138.63,7.213]
[1719372502661,7.2099,138.7,138.64,7.2127]
[1719372502956,7.2099,138.7,138.62,18.0346]
[1719372502957,9.60221,138.69,138.63,7.2133]
[1719372503138,21.5371,138.68,138.59,18.038]
[1719372503339,21.7071,138.68,138.59,18.038]
[1719372503563,7.2124,138.65,138.59,25.2531]
[1719372503761,32.56213287,138.64,138.59,25.2531]
[1719372504062,32.56213287,138.64,138.54,94.8406]
[1719372504063,2.22213287,138.64,138.62,7.2135]
[1719372504364,2.22213287,138.64,138.54,94.8406]
[1719372504565,0.17,138.63,138.58,7.2158]
[1719372504864,30.17,138.63,138.58,7.2158]
[1719372505061,15.1981,138.62,138.56,25.2585]
[1719372505266,22.412,138.62,138.56,25.2585]
[1719372505752,28.7511,138.62,138.56,25.259]
[1719372506857,21.5371,138.62,138.57,7.2164]
[1719372507165,21.5371,138.62,138.54,36.0882]
[1719372507166,30.0,138.61,138.58,18.0393]
[1719372507357,30.0,138.61,138.58,25.2553]
[1719372507664,30.0,138.61,138.55,18.0436]
[1719372508071,30.0,138.61,138.57,7.2164]
[1719372508362,0.17,138.6,138.52,18.0471]
[1719372508585,22.0454,138.59,138.52,18.0471]
[1719372508760,22.0454,138.59,138.54,7.2179]
[1719372508960,22.0454,138.59,138.52,18.0471]
[1719372509165,9.77884953,138.58,138.53,7.2186]
[1719372509366,2.22336004,138.57,138.54,18.0443]
[1719372509552,2.22336004,138.57,138.55,7.2174]
[1719372509765,22.0454,138.59,138.56,7.217]
[1719372509966,30.0,138.57,138.56,7.217]
[1719372511047,22.0454,138.59,138.56,7.217]
[1719372511461,22.0454,138.59,138.55,7.2175]
[1719372512561,7.2134,138.64,138.57,25.2568]
[1719372512758,2.22336004,138.63,138.57,25.2568]
[1719372513562,9.43716004,138.63,138.57,25.2568]
[1719372514051,0.17,138.62,138.57,25.2568]
[1719372515875,2.22336004,138.63,138.59,18.0378]
[1719372516273,2.22336004,138.63,138.59,25.2531]
[1719372517478,9.60746004,138.62,138.56,25.2584]
[1719372517780,2.22336004,138.62,138.57,7.2165]
[1719372517957,0.17,138.61,138.57,7.2165]
[1719372518153,7.5548,138.61,138.53,18.0457]
[1719372518362,2.22336004,138.6,138.55,7.2172]
[1719372519167,2.22336004,138.6,138.56,7.2168]
[1719372520182,22.8823,138.59,138.54,7.2176]
[1719372520391,0.17,138.58,138.54,7.2176]
[1719372520556,0.17,138.58,138.48,15.0356]
[1719372521075,0.17,138.58,138.52,18.047]
[1719372521559,7.3865,138.58,138.52,25.2658]
[1719372521759,0.17,138.58,138.53,7.2184]
[1719372522266,2.22336004,138.57,138.53,7.2184]
[1719372522653,2.22336004,138.57,138.52,25.2661]
[1719372522854,2.22336004,138.57,138.54,18.0444]
[1719372523053,7.2145,138.61,138.55,7.2172]
[1719372523253,9.45969326,138.61,138.54,18.0444]
[1719372523454,2.24519326,138.61,138.56,7.217]
[1719372525570,2.24519326,138.61,138.55,7.2175]
[1719372525771,0.17,138.6,138.5,36.1006]
[1719372526083,0.17,138.6,138.51,20.0]
[1719372526270,0.17,138.6,138.56,7.217]
[1719372526467,0.17,138.6,138.54,7.2178]
[1719372526656,7.5554,138.6,138.54,7.2178]
[1719372527076,2.24519326,138.61,138.53,36.0909]
[1719372527262,2.24519326,138.61,138.57,7.2165]
[1719372527780,2.24519326,138.61,138.56,18.042]
[1719372527781,9.45979326,138.61,138.56,18.042]
[1719372527958,7.2153,138.6,138.54,7.2181]
[1719372528284,7.217,138.57,138.5,18.0498]
[1719372528461,6.4663,138.6,138.52,7.2191]
[1719372528462,7.2162,138.58,138.52,7.2191]
[1719372528662,0.17,138.57,138.52,7.2191]
[1719372529172,0.17,138.57,138.5,18.0498]
[1719372529384,15.8226,138.56,138.5,18.0498]
[1719372529682,2.24519326,138.61,138.49,88.5816]
[1719372529895,0.17,138.6,138.5,20.0]
[1719372530381,7.3853,138.6,138.54,25.2627]
[1719372530786,15.9944,138.56,138.44,15.2576]
[1719372531135,7.2187,138.53,138.47,7.2214]
[1719372531392,7.2192,138.52,138.45,18.0562]
[1719372531592,6.2404,138.54,138.47,7.2216]
[1719372531593,7.2187,138.53,138.47,7.2216]
[1719372531782,13.6286,138.54,138.47,18.0536]
[1719372531961,6.2404,138.54,138.5,7.22]
[1719372532289,13.4586,138.54,138.49,25.2719]
[1719372532491,0.17,138.53,138.49,18.0514]
[1719372532691,0.17,138.53,138.49,25.272]
[1719372532870,22.4713,138.56,138.52,7.2191]
[1719372533502,22.4713,138.56,138.48,18.0528]
[1719372533794,29.6885,138.56,138.48,18.0528]
[1719372533974,29.6885,138.56,138.51,7.2196]
[1719372535006,0.17,138.55,138.51,7.2196]
[1719372535209,15.9944,138.56,138.52,7.2191]
[1719372535395,15.9944,138.56,138.53,7.2185]
[1719372535582,15.9944,138.56,138.52,7.2188]
[1719372535911,15.9944,138.56,138.53,7.2186]
[1719372536483,15.9944,138.56,138.54,7.218]
[1719372536707,6.0991,138.58,138.54,7.218]
[1719372537403,6.0991,138.58,138.54,18.0449]
[1719372538106,6.0991,138.58,138.54,25.2628]
[1719372538641,13.3152,138.58,138.51,18.0483]
[1719372538805,13.3152,138.58,138.52,7.2188]
[1719372539109,2.24519326,138.61,138.52,7.2188]
[1719372539110,9.46009326,138.61,138.52,36.0956]
[1719372539310,9.46009326,138.61,138.55,25.2609]
[1719372539311,2.24519326,138.61,138.55,25.2609]
[1719372539613,2.24519326,138.61,138.56,7.2169]
[1719372539810,2.24519326,138.61,138.52,18.047]
[1719372540707,0.34,138.6,138.52,18.047]
[1719372541150,23.68619326,138.59,138.49,18.0512]
[1719372541407,7.2177,138.55,138.49,18.0512]
[1719372541704,0.34,138.58,138.46,34.5052]
[1719372541911,7.2172,138.56,138.48,7.2208]
[1719372542212,9.63309326,138.55,138.49,7.2207]
[1719372542517,9.46309326,138.55,138.49,7.2207]
[1719372542687,7.2185,138.54,138.48,18.0528]
[1719372542888,7.2185,138.54,138.48,25.2735]
[1719372543385,2.24519326,138.55,138.5,18.0501]
[1719372543587,2.24519326,138.55,138.5,25.2698]
[1719372543799,7.2167,138.57,138.51,7.2195]
[1719372545224,7.2167,138.57,138.52,7.219]
[1719372545681,7.2162,138.58,138.52,7.219]
[1719372546608,7.2162,138.58,138.53,7.2186]
[1719372546820,28.8267,138.59,138.53,7.2186]
[1719372547028,0.17,138.58,138.53,7.2186]
[1719372547379,7.2164,138.58,138.52,25.2666]
[1719372548199,30.86526232,138.59,138.53,7.2186]
[1719372548487,23.64956232,138.59,138.52,18.0476]
[1719372548693,7.2171,138.56,138.49,18.0509]
[1719372549820,2.54856232,138.58,138.46,34.5045]
[1719372549984,7.2173,138.56,138.5,7.2199]
[1719372550185,7.2166,138.57,138.51,25.2676]
[1719372550904,0.17,138.56,138.48,18.0523]
[1719372551112,7.2181,138.55,138.5,7.22]
[1719372552144,7.2181,138.55,138.46,16.4498]
[1719372552145,7.2192,138.52,138.47,7.2217]
[1719372552787,23.4868,138.54,138.49,7.2203]
[1719372552788,23.1468,138.54,138.49,7.2203]
[1719372553730,23.1468,138.54,138.48,18.0522]
[1719372553731,23.1468,138.54,138.5,7.2202]
[1719372554429,23.1468,138.54,138.48,18.0522]
[1719372554430,16.6645,138.54,138.51,7.2196]
[1719372554937,22.9759,138.57,138.5,18.0502]
[1719372555240,22.9759,138.57,138.53,7.2186]
[1719372555816,22.9759,138.57,138.52,25.2665]
[1719372557231,6.6653,138.61,138.57,7.2162]
[1719372558006,6.6653,138.61,138.53,0.17]
[1719372558007,7.2153,138.6,138.54,7.2176]
[1719372558618,6.6653,138.61,138.54,7.2176]
[1719372558836,7.2151,138.6,138.54,7.2176]
[1719372559746,13.8799,138.61,138.55,7.2174]
[1719372559942,16.08846232,138.61,138.56,7.217]
[1719372560534,7.215,138.6,138.55,7.2174]
[1719372561041,8.87386232,138.61,138.53,18.0464]
[1719372561261,0.34,138.6,138.53,18.0464]
[1719372561465,2.20856232,138.61,138.53,18.0464]
[1719372561652,7.3851,138.6,138.53,18.0464]
[1719372562571,0.17,138.6,138.53,25.265]
[1719372562866,7.2156,138.59,138.54,7.218]
[1719372563167,22.2299,138.58,138.53,18.0464]
[1719372563767,15.0138,138.58,138.53,25.2649]
[1719372564070,15.0138,138.58,138.53,18.0464]
[1719372564267,15.0138,138.58,138.55,7.2172]
[1719372564472,15.0138,138.58,138.53,25.2645]
[1719372564769,15.0138,138.58,138.54,7.2179]
[1719372565272,22.2301,138.58,138.53,18.0464]
[1719372565768,22.2301,138.58,138.53,25.2649]
[1719372566149,7.2172,138.56,138.5,25.2699]
[1719372566354,7.2172,138.56,138.5,18.0501]
[1719372567067,7.2177,138.55,138.5,25.2701]
[1719372567254,0.34,138.57,138.47,52.48]
[1719372567255,0.34,138.57,138.49,7.2206]
[1719372567972,7.2189,138.53,138.47,25.2751]
[1719372568175,7.2189,138.53,138.47,18.0537]
[1719372568989,13.642,138.54,138.48,7.2209]
[1719372569777,7.2186,138.53,138.47,25.2752]
[1719372569989,7.3886,138.53,138.47,25.2752]
[1719372570801,16.5659,138.52,138.44,52.48]
[1719372570948,0.34,138.51,138.43,0.8678379]
[1719372571152,6.2087,138.5,138.43,0.8678379]
[1719372571376,7.2219,138.47,138.43,0.8678379]
[1719372572180,7.2212,138.48,138.43,0.8678379]
[1719372572372,0.17,138.47,138.43,0.8678379]
[1719372572573,7.2212,138.48,138.43,8.0916379]
[1719372572953,7.2209,138.49,138.43,8.0916379]
[1719372573883,0.17,138.48,138.43,0.8678379]
[1719372574384,7.2233,138.44,138.43,0.8678379]
[1719372575274,7.2229,138.45,138.43,0.8678379]
[1719372575847,7.2229,138.45,138.34,52.48]
[1719372575848,7.2261,138.39,138.34,18.0713]
[1719372576074,7.2261,138.39,138.34,25.2998]
[1719372576305,7.2261,138.39,138.33,7.2289]
[1719372576499,18.0627,138.41,138.31,18.0746]
[1719372576701,0.17,138.4,138.32,7.2294]
[1719372577011,7.2266,138.38,138.32,7.2294]
[1719372577416,7.2271,138.37,138.31,25.3046]
[1719372577614,7.2271,138.37,138.32,20.0]
[1719372577906,16.6256,138.39,138.31,18.0746]
[1719372578085,7.2275,138.36,138.31,25.3043]
[1719372578290,7.2275,138.36,138.31,18.0746]
[1719372578501,7.2275,138.36,138.31,25.3046]
[1719372578698,7.2271,138.37,138.31,25.3046]
[1719372579302,7.5665,138.38,138.32,7.2295]
[1719372579602,7.3965,138.38,138.32,7.2295]
[1719372580517,7.2265,138.38,138.32,7.2295]
[1719372580828,6.3024,138.37,138.31,18.0746]
[1719372581031,7.2284,138.35,138.29,8.0985379]
[1719372581425,7.2284,138.35,138.3,7.2306]
[1719372581735,7.2276,138.36,138.3,7.2306]
[1719372582830,7.2281,138.35,138.3,7.2306]
[1719372585235,7.2281,138.35,138.29,8.0988379]
[1719372585811,6.4724,138.37,138.29,0.8678379]
[1719372585812,7.2291,138.33,138.29,0.8678379]
[1719372586226,24.3705,138.37,138.29,8.0989379]
[1719372586736,7.2282,138.35,138.29,8.0989379]
[1719372586911,7.2282,138.35,138.3,7.2306]
[1719372587113,7.2292,138.33,138.29,0.8678379]
[1719372587308,7.2287,138.34,138.29,0.8678379]
[1719372588039,7.2287,138.34,138.29,8.0989379]
[1719372588427,7.228,138.35,138.3,7.2306]
[1719372588745,6.3024,138.37,138.29,0.8678379]
[1719372588934,20.17,138.36,138.29,0.8678379]
[1719372589843,7.2297,138.32,138.29,0.8678379]
[1719372590338,7.229,138.33,138.29,0.8678379]
[1719372591921,6.3024,138.37,138.3,7.2306]
[1719372592128,7.3981,138.4,138.31,0.17]
[1719372592326,6.4727,138.41,138.31,18.4144]
[1719372592629,7.2265,138.38,138.32,7.2294]
[1719372593240,7.227,138.37,138.31,25.6444]
[1719372593425,7.227,138.37,138.31,25.4744]
[1719372593842,7.227,138.37,138.32,7.2295]
[1719372595865,7.2264,138.39,138.33,7.2286]
[1719372596355,7.2264,138.39,138.34,7.2284]
[1719372596563,6.4727,138.41,138.33,25.3011]
[1719372596771,38.0645,138.4,138.34,45.0]
[1719372596974,38.0645,138.4,138.31,25.305]
[1719372597129,38.0645,138.4,138.31,70.305]
[1719372597330,7.227,138.37,138.31,70.305]
[1719372598038,38.0645,138.4,138.31,45.0]
[1719372598240,7.2286,138.34,138.31,45.0]
[1719372598534,7.2282,138.35,138.31,45.0]
[1719372600660,7.2281,138.35,138.31,45.0]
[1719372601639,18.0645,138.4,138.31,45.0]
[1719372602060,18.0673,138.38,138.29,0.8678379]
[1719372602261,7.2292,138.33,138.29,0.8678379]
[1719372602551,24.5357,138.41,138.3,18.2463]
[1719372602758,24.5357,138.41,138.31,23.5623]
[1719372603134,7.2275,138.36,138.31,16.3323]
[1719372604457,7.2281,138.35,138.31,16.3323]
[1719372605046,7.2277,138.36,138.31,16.3323]
[1719372605553,18.0677,138.37,138.29,0.8678379]
[1719372605949,7.2287,138.34,138.29,0.8678379]
[1719372607339,18.0677,138.37,138.29,0.8678379]
[1719372607340,7.2298,138.32,138.29,0.8678379]
[1719372608347,7.2301,138.31,138.29,0.8678379]
[1719372608657,7.2299,138.32,138.29,0.8678379]
[1719372608966,7.2303,138.31,138.29,0.8678379]
[1719372609346,7.2298,138.32,138.29,0.8678379]
[1719372609644,7.2301,138.31,138.29,0.8678379]
[1719372610144,7.2297,138.32,138.29,0.8678379]
[1719372610960,7.2302,138.31,138.29,0.8678379]
[1719372611140,7.2296,138.32,138.29,0.8678379]
[1719372611344,7.2292,138.33,138.29,0.8678379]
[1719372611664,7.2296,138.32,138.29,0.8678379]
[1719372612770,18.0691,138.36,138.29,16.1559379]
[1719372613059,7.2295,138.33,138.29,16.1559379]
[1719372613362,33.9652,138.34,138.29,0.8678379]
[1719372613662,7.2302,138.31,138.29,0.8678379]
[1719372614371,7.2306,138.3,138.29,0.8678379]
[1719372616445,33.9652,138.34,138.29,0.8678379]
[1719372616763,7.2281,138.35,138.29,8.0988379]
[1719372616962,57.6289,138.44,138.31,6.0074]
[1719372617175,7.2267,138.38,138.32,7.5691]
[1719372617545,7.226,138.39,138.33,7.229]
[1719372618165,7.2266,138.38,138.32,7.5694]
[1719372618869,7.2278,138.36,138.31,6.0074]
[1719372619068,7.2271,138.37,138.31,6.0074]
[1719372619255,7.2265,138.38,138.32,0.17]
[1719372619449,7.2265,138.38,138.32,7.3995]
[1719372620076,18.0675,138.37,138.29,0.8678379]
[1719372620251,7.2286,138.34,138.29,0.8678379]
[1719372621573,6.4947,138.39,138.29,0.8678379]
[1719372621755,18.0644,138.4,138.3,7.4001]
[1719372621756,7.2275,138.36,138.3,7.4001]
[1719372621950,16.4573,138.41,138.3,18.2461]
[1719372622272,7.2266,138.38,138.32,13.568]
[1719372622678,7.2266,138.38,138.33,0.17]
[1719372622850,281.2749,138.46,138.38,16.4306]
[1719372622851,14.66619956,138.44,138.38,16.4306]
[1719372623050,36.1086,138.48,138.34,16.4306]
[1719372623256,36.1086,138.48,138.35,0.17]
[1719372623257,7.2254,138.4,138.35,0.17]
[1719372623777,18.06,138.43,138.35,0.34]
[1719372623958,18.0565,138.46,138.35,7.5677]
[1719372624272,7.2249,138.41,138.35,7.5677]
[1719372625775,7.2245,138.42,138.36,7.2274]
[1719372625960,7.2237,138.44,138.38,7.2264]
[1719372626164,258.1,138.52,138.41,6.2137]
[1719372626165,7.2203,138.5,138.41,6.2137]
[1719372626469,7.2202,138.5,138.44,7.2229]
[1719372626650,7.2202,138.5,138.43,25.2824]
[1719372626847,7.2197,138.51,138.44,0.34]
[1719372627047,7.2203,138.5,138.44,7.5632]
[1719372627280,7.2208,138.49,138.44,0.17]
[1719372627584,7.2208,138.49,138.43,18.0586]
[1719372627760,7.2212,138.48,138.42,7.2243]
[1719372627958,21.53,138.54,138.42,18.0602]
[1719372628274,7.2203,138.5,138.43,7.2238]
[1719372628851,7.2203,138.5,138.44,7.3931]
[1719372629051,7.2203,138.5,138.43,7.2238]
[1719372629469,7.2203,138.5,138.42,18.0602]
[1719372629470,7.2203,138.5,138.44,7.2231]
[1719372630075,7.2197,138.51,138.45,7.2227]
[1719372630277,7.2202,138.5,138.43,0.17]
[1719372630471,7.2198,138.51,138.44,7.2229]
[1719372630969,7.2203,138.5,138.44,7.2229]
[1719372631171,21.53,138.54,138.43,0.34]
[1719372631379,6.3965,138.54,138.45,7.2224]
[1719372631593,7.2211,138.49,138.42,18.2305]
[1719372631879,7.2203,138.5,138.43,7.3937]
[1719372632258,18.0487,138.52,138.42,18.0605]
[1719372632665,7.2223,138.46,138.41,6.2137]
[1719372632867,18.0512,138.5,138.41,6.2137]
[1719372632868,7.2229,138.45,138.41,6.2137]
[1719372633286,7.2224,138.46,138.41,6.2137]
[1719372633663,18.2174,138.53,138.41,24.2754]
[1719372634064,18.0474,138.53,138.42,0.17]
[1719372634282,7.2213,138.48,138.42,0.34]
[1719372634691,7.2208,138.49,138.42,7.564]
[1719372634860,18.0499,138.51,138.41,24.2754]
[1719372635064,7.2222,138.47,138.41,24.2754]
[1719372635372,0.34,138.5,138.41,6.2137]
[1719372635571,6.0237,138.48,138.35,18.0698]
[1719372635771,7.2239,138.43,138.37,7.2269]
[1719372636089,7.2239,138.43,138.36,7.2273]
[1719372636875,7.2239,138.43,138.37,0.17]
[1719372637181,7.2235,138.44,138.37,7.3966]
[1719372637376,18.0555,138.47,138.38,0.17]
[1719372637572,7.2238,138.43,138.37,25.4635]
[1719372637773,18.0555,138.47,138.37,18.237]
[1719372638090,7.223,138.45,138.38,0.17]
[1719372639073,7.2234,138.44,138.38,7.3964]
[1719372639273,24.0773,138.48,138.38,0.17]
[1719372639495,7.2243,138.43,138.38,0.17]
[1719372639986,7.2235,138.44,138.38,7.3962]
[1719372640199,7.224,138.43,138.39,0.17]
[1719372640488,7.224,138.43,138.38,0.17]
[1719372640678,24.0773,138.48,138.38,7.3964]
[1719372640679,7.2234,138.44,138.38,7.3964]
[1719372640878,7.2234,138.44,138.39,0.17]
[1719372642872,18.0561,138.46,138.38,0.17]
[1719372643092,7.2247,138.42,138.36,7.2274]
[1719372643302,7.2247,138.42,138.37,0.34]
[1719372644394,18.0561,138.46,138.37,7.5669]
[1719372644395,7.224,138.43,138.37,7.5669]
[1719372645488,18.0561,138.46,138.34,39.7285]
[1719372645695,18.0598,138.43,138.34,21.6582]
[1719372645898,7.227,138.37,138.34,21.6582]
[1719372646070,7.2266,138.38,138.34,21.6582]
[1719372647791,7.2261,138.39,138.34,21.6582]
[1719372647994,18.0598,138.43,138.34,28.8864]
[1719372648185,18.0598,138.43,138.35,0.34]
[1719372648382,7.226,138.39,138.33,25.3006]
[1719372648587,22.6087,138.45,138.34,0.87202746]
[1719372648588,18.0616,138.42,138.34,0.87202746]
[1719372649094,7.2263,138.39,138.34,0.87202746]
[1719372650298,7.2263,138.39,138.33,31.6897]
[1719372650502,18.0616,138.42,138.3,18.0757]
[1719372650503,18.0648,138.4,138.3,18.0757]
[1719372650714,7.2283,138.35,138.3,18.0757]
[1719372650899,7.2281,138.35,138.29,8.0989379]
[1719372651982,7.2277,138.36,138.3,7.5706]
[1719372652586,7.227,138.37,138.3,0.34]
[1719372652798,7.227,138.37,138.31,7.2299]
[1719372652998,7.2266,138.38,138.32,7.5696]
[1719372653204,18.0629,138.41,138.33,0.17]
[1719372653205,7.227,138.37,138.33,0.17]
[1719372653700,15.21834344,138.43,138.35,13.4699]
[1719372653902,7.2254,138.4,138.36,0.34]
[1719372654199,7.2259,138.39,138.36,0.17]
[1719372654412,7.75591624,138.43,138.36,0.34]
[1719372654598,7.2258,138.4,138.36,0.34]
[1719372655097,7.2259,138.39,138.36,0.34]
[1719372656283,7.75591624,138.43,138.36,0.34]
[1719372656601,7.225,138.41,138.36,0.34]
[1719372657304,7.225,138.41,138.36,1.78324518]
[1719372658104,18.0613,138.42,138.32,22.3108]
[1719372658405,7.226,138.39,138.33,18.0725]
[1719372659109,7.226,138.39,138.33,25.3011]
[1719372659404,7.75591624,138.43,138.33,25.3011]
[1719372659405,7.2256,138.4,138.34,7.3985]
[1719372659614,7.2256,138.4,138.35,0.17]
[1719372661199,7.2247,138.42,138.35,7.398]
[1719372661406,7.46137102,138.45,138.38,22.0899]